fUST/lending_fUST_20260518
["ID","MTS","AMOUNT","RATE_DAILY","PERIOD"]
[422540340,1779042652000,-500.0,0.00011506,2]
[422540337,1779042652000,-500.0,0.00011506,2]
[422540339,1779042652000,-500.0,0.00011506,2]
[422540334,1779042652000,-505.45622325,0.00011506,2]
[422540333,1779042652000,-500.0,0.00011506,2]
[422540343,1779042652000,-1025.26,0.00011506,2]
[422540324,1779042652000,-520.17464141,0.00011506,2]
[422540330,1779042652000,-500.0,0.00011506,2]
[422540328,1779042652000,-500.0,0.00011506,2]
[422540331,1779042652000,-808.55,0.00011506,2]
[422540327,1779042652000,-559.60540712,0.00011506,2]
[422540332,1779042652000,-500.0,0.00011506,2]
[422540336,1779042652000,-1594.9,0.00011506,2]
[422540329,1779042652000,-500.0,0.00011506,2]
[422540326,1779042652000,-500.0,0.00011506,2]
[422540380,1779042653000,-500.0,0.00011506,2]
[422540379,1779042653000,-911.86,0.00011506,2]
[422540377,1779042653000,-4076.78,0.00011506,2]
[422540385,1779042653000,-500.0,0.00011506,2]
[422540413,1779042653000,-500.0,0.00011506,2]
[422540386,1779042653000,-500.0,0.00011506,2]
[422540388,1779042653000,-500.0,0.00011506,2]
[422540384,1779042653000,-737.15,0.00011506,2]
[422540382,1779042653000,-911.19,0.00011506,2]
[422540383,1779042653000,-500.0,0.00011506,2]
[422540387,1779042653000,-1627.57,0.00011506,2]
[422540381,1779042653000,-500.0,0.00011506,2]
[422540389,1779042653000,-681.67,0.00011506,2]
[422540400,1779042653000,-625.17,0.00011506,2]
[422540390,1779042653000,-500.0,0.00011506,2]
[422540393,1779042653000,-500.0,0.00011506,2]
[422540391,1779042653000,-4543.19,0.00011506,2]
[422540395,1779042653000,-250.0964362,0.00011506,2]
[422540397,1779042653000,-1277.98,0.00011506,2]
[422540392,1779042653000,-4695.27,0.00011506,2]
[422540396,1779042653000,-500.0,0.00011506,2]
[422540394,1779042653000,-500.0,0.00011506,2]
[422540378,1779042653000,-691.85,0.00011506,2]
[422540401,1779042653000,-500.0,0.00011506,2]
[422540399,1779042653000,-500.0,0.00011506,2]
[422540402,1779042653000,-500.0,0.00011506,2]
[422540403,1779042653000,-790.34,0.00011506,2]
[422540404,1779042653000,-4006.28,0.00011506,2]
[422540398,1779042653000,-500.0,0.00011506,2]
[422540371,1779042653000,-5145.29,0.00011506,2]
[422540370,1779042653000,-764.18,0.00011506,2]
[422540372,1779042653000,-500.0,0.00011506,2]
[422540349,1779042653000,-2461.27,0.00011506,2]
[422540344,1779042653000,-611.12,0.00011506,2]
[422540345,1779042653000,-500.0,0.00011506,2]
[422540348,1779042653000,-538.34,0.00011506,2]
[422540347,1779042653000,-326.14007275,0.00011506,2]
[422540346,1779042653000,-500.0,0.00011506,2]
[422540351,1779042653000,-500.0,0.00011506,2]
[422540353,1779042653000,-500.0,0.00011506,2]
[422540361,1779042653000,-500.0,0.00011506,2]
[422540362,1779042653000,-439.36401991,0.00011506,2]
[422540350,1779042653000,-1611.6,0.00011506,2]
[422540363,1779042653000,-500.0,0.00011506,2]
[422540352,1779042653000,-500.0,0.00011506,2]
[422540354,1779042653000,-2361.05,0.00011506,2]
[422540356,1779042653000,-500.0,0.00011506,2]
[422540359,1779042653000,-502.5,0.00011506,2]
[422540357,1779042653000,-588.89,0.00011506,2]
[422540358,1779042653000,-500.0,0.00011506,2]
[422540355,1779042653000,-157.17821589,0.00011506,2]
[422540360,1779042653000,-11440.52,0.00011506,2]
[422540366,1779042653000,-500.0,0.00011506,2]
[422540364,1779042653000,-500.0,0.00011506,2]
[422540367,1779042653000,-525.40468362,0.00011506,2]
[422540365,1779042653000,-570.59,0.00011506,2]
[422540375,1779042653000,-500.0,0.00011506,2]
[422540373,1779042653000,-500.0,0.00011506,2]
[422540368,1779042653000,-2408.65,0.00011506,2]
[422540374,1779042653000,-500.0,0.00011506,2]
[422540369,1779042653000,-580.62,0.00011506,2]
[422540376,1779042653000,-500.0,0.00011506,2]
[422540414,1779042653000,-500.0,0.00011506,2]
[422540430,1779042653000,-500.0,0.00011506,2]
[422540408,1779042653000,-3649.76,0.00011506,2]
[422540446,1779042653000,-500.0,0.00011506,2]
[422540448,1779042653000,-500.0,0.00011506,2]
[422540441,1779042653000,-500.0,0.00011506,2]
[422540442,1779042653000,-2437.05,0.00011506,2]
[422540444,1779042653000,-500.0,0.00011506,2]
[422540451,1779042653000,-500.0,0.00011506,2]
[422540443,1779042653000,-10841.66,0.00011506,2]
[422540447,1779042653000,-4733.27,0.00011506,2]
[422540453,1779042653000,-500.0,0.00011506,2]
[422540445,1779042653000,-500.0,0.00011506,2]
[422540450,1779042653000,-362.71251788,0.00011506,2]
[422540458,1779042653000,-500.0,0.00011506,2]
[422540465,1779042653000,-500.0,0.00011506,2]
[422540449,1779042653000,-500.0,0.00011506,2]
[422540454,1779042653000,-879.53,0.00011506,2]
[422540461,1779042653000,-718.13,0.00011506,2]
[422540456,1779042653000,-4568.83,0.00011506,2]
[422540460,1779042653000,-500.0,0.00011506,2]
[422540455,1779042653000,-2186.05,0.00011506,2]
[422540459,1779042653000,-500.0,0.00011506,2]
[422540464,1779042653000,-1109.0,0.00011506,2]
[422540463,1779042653000,-500.0,0.00011506,2]
[422540462,1779042653000,-500.0,0.00011506,2]
[422540468,1779042653000,-2096.56,0.00011506,2]
[422540467,1779042653000,-500.0,0.00011506,2]
[422540469,1779042653000,-1682.09,0.00011506,2]
[422540470,1779042653000,-2867.35,0.00011506,2]
[422540405,1779042653000,-3902.84,0.00011506,2]
[422540457,1779042653000,-500.0,0.00011506,2]
[422540452,1779042653000,-500.0,0.00011506,2]
[422540466,1779042653000,-500.0,0.00011506,2]
[422540431,1779042653000,-668.4,0.00011506,2]
[422540410,1779042653000,-2887.65,0.00011506,2]
[422540440,1779042653000,-500.0,0.00011506,2]
[422540411,1779042653000,-1115.05,0.00011506,2]
[422540409,1779042653000,-500.0,0.00011506,2]
[422540407,1779042653000,-7873.3,0.00011506,2]
[422540412,1779042653000,-3336.81,0.00011506,2]
[422540416,1779042653000,-500.0,0.00011506,2]
[422540426,1779042653000,-782.44,0.00011506,2]
[422540417,1779042653000,-4046.15,0.00011506,2]
[422540415,1779042653000,-1107.27,0.00011506,2]
[422540418,1779042653000,-9064.24,0.00011506,2]
[422540424,1779042653000,-3176.51,0.00011506,2]
[422540422,1779042653000,-500.0,0.00011506,2]
[422540421,1779042653000,-1486.43,0.00011506,2]
[422540419,1779042653000,-1633.7,0.00011506,2]
[422540406,1779042653000,-737.6,0.00011506,2]
[422540420,1779042653000,-500.0,0.00011506,2]
[422540423,1779042653000,-500.0,0.00011506,2]
[422540439,1779042653000,-570.73,0.00011506,2]
[422540438,1779042653000,-500.0,0.00011506,2]
[422540434,1779042653000,-56189.47,0.00011506,2]
[422540427,1779042653000,-8388.86,0.00011506,2]
[422540428,1779042653000,-500.0,0.00011506,2]
[422540435,1779042653000,-681.64,0.00011506,2]
[422540437,1779042653000,-500.0,0.00011506,2]
[422540433,1779042653000,-500.0,0.00011506,2]
[422540432,1779042653000,-502.83,0.00011506,2]
[422540425,1779042653000,-3750.4,0.00011506,2]
[422540429,1779042653000,-936.82,0.00011506,2]
[422540436,1779042653000,-500.0,0.00011506,2]
[422540510,1779042654000,-1106.98332885,0.00011665,7]
[422540512,1779042654000,-1867.841017,0.00011696,2]
[422540509,1779042654000,-1536.384685,0.00011638,2]
[422540514,1779042654000,-160.0,0.000117,4]
[422540515,1779042654000,-354.01075,0.000117,60]
[422540508,1779042654000,-1106.98332885,0.00011632,2]
[422540507,1779042654000,-1106.98332885,0.00011598,2]
[422540506,1779042654000,-1106.98332885,0.00011564,2]
[422540504,1779042654000,-1555.0,0.00011507,2]
[422540513,1779042654000,-1106.98332885,0.00011699,7]
[422540505,1779042654000,-1106.98332885,0.00011564,2]
[422540511,1779042654000,-440.84211616,0.00011674,7]
[422540517,1779042654000,-1106.98332885,0.00011766,7]
[422540523,1779042654000,-664.0899,0.0001178,2]
[422540518,1779042654000,-500.0,0.0001178,2]
[422540527,1779042654000,-500.0,0.0001178,2]
[422540519,1779042654000,-1448.4715,0.0001178,2]
[422540520,1779042654000,-596.1632,0.0001178,2]
[422540521,1779042654000,-1617.0287,0.0001178,2]
[422540524,1779042654000,-436.70562752,0.0001178,2]
[422540526,1779042654000,-500.0,0.0001178,2]
[422540522,1779042654000,-3429.3122,0.0001178,2]
[422540525,1779042654000,-500.0,0.0001178,2]
[422540529,1779042654000,-786.73,0.0001178,2]
[422540539,1779042654000,-500.0,0.0001178,2]
[422540530,1779042654000,-500.0,0.0001178,2]
[422540501,1779042654000,-500.0,0.00011506,2]
[422540516,1779042654000,-1106.98332885,0.00011732,7]
[422540492,1779042654000,-500.0,0.00011506,2]
[422540478,1779042654000,-8276.04,0.00011506,2]
[422540500,1779042654000,-500.0,0.00011506,2]
[422540541,1779042654000,-500.0,0.0001178,2]
[422540474,1779042654000,-703.92,0.00011506,2]
[422540472,1779042654000,-1345.58,0.00011506,2]
[422540471,1779042654000,-500.0,0.00011506,2]
[422540475,1779042654000,-883.1,0.00011506,2]
[422540473,1779042654000,-791.96,0.00011506,2]
[422540477,1779042654000,-500.0,0.00011506,2]
[422540476,1779042654000,-9066.96,0.00011506,2]
[422540486,1779042654000,-677.5,0.00011506,2]
[422540487,1779042654000,-500.0,0.00011506,2]
[422540484,1779042654000,-2178.56,0.00011506,2]
[422540490,1779042654000,-3485.28,0.00011506,2]
[422540489,1779042654000,-500.0,0.00011506,2]
[422540488,1779042654000,-500.0,0.00011506,2]
[422540482,1779042654000,-500.0,0.00011506,2]
[422540485,1779042654000,-3083.97,0.00011506,2]
[422540479,1779042654000,-500.0,0.00011506,2]
[422540483,1779042654000,-511.95,0.00011506,2]
[422540480,1779042654000,-500.0,0.00011506,2]
[422540481,1779042654000,-3348.68,0.00011506,2]
[422540497,1779042654000,-500.0,0.00011506,2]
[422540496,1779042654000,-500.0,0.00011506,2]
[422540498,1779042654000,-500.0,0.00011506,2]
[422540493,1779042654000,-500.0,0.00011506,2]
[422540491,1779042654000,-500.0,0.00011506,2]
[422540499,1779042654000,-1238.7,0.00011506,2]
[422540503,1779042654000,-3372.74,0.00011507,2]
[422540502,1779042654000,-4450.26,0.00011506,2]
[422540494,1779042654000,-500.0,0.00011506,2]
[422540495,1779042654000,-502.34,0.00011506,2]
[422540540,1779042654000,-500.0,0.0001178,2]
[422540551,1779042654000,-807.15,0.0001178,2]
[422540528,1779042654000,-500.0,0.0001178,2]
[422540571,1779042654000,-501.40500023,0.0001178,2]
[422540567,1779042654000,-500.0,0.0001178,2]
[422540579,1779042654000,-500.0,0.0001178,2]
[422540569,1779042654000,-500.0,0.0001178,2]
[422540572,1779042654000,-500.0,0.0001178,2]
[422540570,1779042654000,-1880.54,0.0001178,2]
[422540574,1779042654000,-500.0,0.0001178,2]
[422540577,1779042654000,-525.96251609,0.0001178,2]
[422540573,1779042654000,-500.0,0.0001178,2]
[422540531,1779042654000,-500.0,0.0001178,2]
[422540576,1779042654000,-574.89,0.0001178,2]
[422540591,1779042654000,-704.38,0.0001178,2]
[422540581,1779042654000,-500.0,0.0001178,2]
[422540568,1779042654000,-500.0,0.0001178,2]
[422540592,1779042654000,-2556.3,0.0001178,2]
[422540582,1779042654000,-779.43,0.0001178,2]
[422540587,1779042654000,-1486.37,0.0001178,2]
[422540588,1779042654000,-1115.76,0.0001178,2]
[422540586,1779042654000,-500.0,0.0001178,2]
[422540584,1779042654000,-500.0,0.0001178,2]
[422540583,1779042654000,-500.0,0.0001178,2]
[422540589,1779042654000,-426.9750146,0.0001178,2]
[422540590,1779042654000,-500.0,0.0001178,2]
[422540585,1779042654000,-500.0,0.0001178,2]
[422540595,1779042654000,-500.0,0.0001178,2]
[422540593,1779042654000,-926.37,0.0001178,2]
[422540596,1779042654000,-500.0,0.0001178,2]
[422540594,1779042654000,-721.64,0.0001178,2]
[422540580,1779042654000,-512.94127487,0.0001178,2]
[422540578,1779042654000,-619.27,0.0001178,2]
[422540575,1779042654000,-550.31,0.0001178,2]
[422540562,1779042654000,-400.67223144,0.0001178,2]
[422540532,1779042654000,-500.0,0.0001178,2]
[422540534,1779042654000,-669.19,0.0001178,2]
[422540558,1779042654000,-1557.13,0.0001178,2]
[422540538,1779042654000,-500.0,0.0001178,2]
[422540533,1779042654000,-630.84,0.0001178,2]
[422540537,1779042654000,-500.0,0.0001178,2]
[422540535,1779042654000,-500.0,0.0001178,2]
[422540542,1779042654000,-163.97209632,0.0001178,2]
[422540545,1779042654000,-500.0,0.0001178,2]
[422540544,1779042654000,-500.0,0.0001178,2]
[422540549,1779042654000,-500.0,0.0001178,2]
[422540543,1779042654000,-570.29459677,0.0001178,2]
[422540546,1779042654000,-757.77,0.0001178,2]
[422540553,1779042654000,-662.91,0.0001178,2]
[422540536,1779042654000,-500.0,0.0001178,2]
[422540547,1779042654000,-500.0,0.0001178,2]
[422540548,1779042654000,-500.0,0.0001178,2]
[422540564,1779042654000,-500.0,0.0001178,2]
[422540560,1779042654000,-928.72,0.0001178,2]
[422540563,1779042654000,-500.0,0.0001178,2]
[422540556,1779042654000,-525.84,0.0001178,2]
[422540561,1779042654000,-650.32,0.0001178,2]
[422540559,1779042654000,-500.0,0.0001178,2]
[422540557,1779042654000,-500.0,0.0001178,2]
[422540565,1779042654000,-500.0,0.0001178,2]
[422540566,1779042654000,-500.0,0.0001178,2]
[422540555,1779042654000,-500.0,0.0001178,2]
[422540552,1779042654000,-620.68,0.0001178,2]
[422540554,1779042654000,-561.49,0.0001178,2]
[422540550,1779042654000,-500.0,0.0001178,2]
[422540615,1779042655000,-500.0,0.0001178,2]
[422540607,1779042655000,-593.13,0.0001178,2]
[422540606,1779042655000,-500.0,0.0001178,2]
[422540614,1779042655000,-500.0,0.0001178,2]
[422540616,1779042655000,-500.0,0.0001178,2]
[422540611,1779042655000,-500.0,0.0001178,2]
[422540617,1779042655000,-500.0,0.0001178,2]
[422540609,1779042655000,-573.83,0.0001178,2]
[422540619,1779042655000,-500.0,0.0001178,2]
[422540618,1779042655000,-500.0,0.0001178,2]
[422540613,1779042655000,-541.47,0.0001178,2]
[422540603,1779042655000,-500.0,0.0001178,2]
[422540608,1779042655000,-422.95714542,0.0001178,2]
[422540602,1779042655000,-815.97,0.0001178,2]
[422540604,1779042655000,-500.0,0.0001178,2]
[422540601,1779042655000,-603.13,0.0001178,2]
[422540605,1779042655000,-610.0,0.0001178,2]
[422540599,1779042655000,-500.0,0.0001178,2]
[422540600,1779042655000,-500.0,0.0001178,2]
[422540597,1779042655000,-2130.5,0.0001178,2]
[422540598,1779042655000,-500.0,0.0001178,2]
[422540612,1779042655000,-752.52,0.0001178,2]
[422540610,1779042655000,-500.0,0.0001178,2]
[422540629,1779042655000,-677.63,0.0001178,2]
[422540636,1779042655000,-462.81800002,0.0001178,2]
[422540624,1779042655000,-610.6,0.0001178,2]
[422540639,1779042655000,-500.0,0.0001178,2]
[422540642,1779042655000,-500.0,0.0001178,2]
[422540645,1779042655000,-1034.48608094,0.0001178,2]
[422540640,1779042655000,-500.0,0.0001178,2]
[422540641,1779042655000,-500.0,0.0001178,2]
[422540644,1779042655000,-1931.9,0.0001178,2]
[422540638,1779042655000,-2203.85654312,0.0001178,2]
[422540643,1779042655000,-2535.9,0.0001178,2]
[422540634,1779042655000,-849.12,0.0001178,2]
[422540637,1779042655000,-609.82290944,0.0001178,2]
[422540635,1779042655000,-372.42254742,0.0001178,2]
[422540620,1779042655000,-500.0,0.0001178,2]
[422540632,1779042655000,-1725.2,0.0001178,2]
[422540633,1779042655000,-500.0,0.0001178,2]
[422540630,1779042655000,-500.0,0.0001178,2]
[422540622,1779042655000,-500.0,0.0001178,2]
[422540623,1779042655000,-500.0,0.0001178,2]
[422540627,1779042655000,-500.0,0.0001178,2]
[422540626,1779042655000,-593.61,0.0001178,2]
[422540621,1779042655000,-500.0,0.0001178,2]
[422540628,1779042655000,-1007.19,0.0001178,2]
[422540631,1779042655000,-483.90320191,0.0001178,2]
[422540625,1779042655000,-914.46,0.0001178,2]
[422540649,1779043633000,-175.1,0.00012,30]
[422540676,1779043831000,-538.95722538,8.897e-05,2]
[422540682,1779043831000,-500.0,8.897e-05,2]
[422540688,1779043831000,-379.02455565,8.897e-05,2]
[422540680,1779043831000,-500.0,8.897e-05,2]
[422540684,1779043831000,-500.0,8.897e-05,2]
[422540675,1779043831000,-300.0,8.896e-05,2]
[422540679,1779043831000,-500.0,8.897e-05,2]
[422540672,1779043831000,-415.32995255,8.62e-05,2]
[422540677,1779043831000,-235.77483987,8.897e-05,2]
[422540678,1779043831000,-500.0,8.897e-05,2]
[422540681,1779043831000,-156.9668788,8.897e-05,2]
[422540674,1779043831000,-262.489,8.818e-05,2]
[422540689,1779043831000,-500.0,8.897e-05,2]
[422540673,1779043831000,-155.3061985,8.8e-05,2]
[422540670,1779043831000,-1215.4204294,8.394e-05,2]
[422540686,1779043831000,-500.0,8.897e-05,2]
[422540706,1779043831000,-581.74327646,8.897e-05,2]
[422540671,1779043831000,-3784.5795706,8.394e-05,2]
[422540695,1779043831000,-500.0,8.897e-05,2]
[422540722,1779043831000,-10250.22830316,8.898e-05,2]
[422540724,1779043831000,-30173.30275679,8.898e-05,2]
[422540719,1779043831000,-625.3740222,8.897e-05,2]
[422540716,1779043831000,-625.3740222,8.897e-05,2]
[422540715,1779043831000,-625.3740222,8.897e-05,2]
[422540713,1779043831000,-581.74327646,8.897e-05,2]
[422540697,1779043831000,-500.0,8.897e-05,2]
[422540720,1779043831000,-625.3740222,8.897e-05,2]
[422540693,1779043831000,-500.0,8.897e-05,2]
[422540707,1779043831000,-581.74327646,8.897e-05,2]
[422540699,1779043831000,-581.74327646,8.897e-05,2]
[422540711,1779043831000,-581.74327646,8.897e-05,2]
[422540691,1779043831000,-500.0,8.897e-05,2]
[422540702,1779043831000,-581.74327646,8.897e-05,2]
[422540709,1779043831000,-581.74327646,8.897e-05,2]
[422540704,1779043831000,-581.74327646,8.897e-05,2]
[422540701,1779043831000,-581.74327646,8.897e-05,2]
[422540834,1779043838000,-869586.55358231,8.898e-05,2]
[422540839,1779043838000,-933.48061187,8.898e-05,2]
[422540836,1779043838000,-2423.77,8.898e-05,2]
[422541090,1779043840000,-1788.92292671,8.809e-05,2]
[422541084,1779043840000,-394.65,8.809e-05,2]
[422541423,1779043843000,-1930.04165381,8.809e-05,2]
[422541426,1779043843000,-886.38541948,8.809e-05,2]
[422541428,1779043843000,-41.67028052,8.898e-05,2]
[422541777,1779043846000,-470.09113638,8.898e-05,2]
[422541758,1779043846000,-5596.86798474,8.898e-05,2]
[422541828,1779045032000,-424.21046966,7.486e-05,2]
[422541826,1779045032000,-318.15688774,7.3e-05,2]
[422541829,1779045032000,-1200.0,7.598e-05,2]
[422541831,1779045032000,-300.0,7.599e-05,2]
[422541830,1779045032000,-300.0,7.599e-05,2]
[422541832,1779045032000,-300.0,7.599e-05,2]
[422541833,1779045032000,-22273.2305426,7.6e-05,2]
[422541827,1779045032000,-5000.0,7.374e-05,2]
[422541868,1779045040000,-500.0,8.592e-05,2]
[422541861,1779045040000,-500.0,8.592e-05,2]
[422541864,1779045040000,-500.0,8.592e-05,2]
[422541863,1779045040000,-558.16856398,8.592e-05,2]
[422541862,1779045040000,-500.0,8.592e-05,2]
[422541860,1779045040000,-451.07752459,8.592e-05,2]
[422541859,1779045040000,-48.92247541,8.592e-05,2]
[422541858,1779045040000,-500.0,8.592e-05,2]
[422541856,1779045040000,-500.0,8.592e-05,2]
[422541857,1779045040000,-500.0,8.592e-05,2]
[422541854,1779045040000,-500.0,8.592e-05,2]
[422541855,1779045040000,-500.0,8.592e-05,2]
[422541848,1779045040000,-500.0,8.592e-05,2]
[422541850,1779045040000,-58.20679035,8.592e-05,2]
[422541852,1779045040000,-500.0,8.592e-05,2]
[422541851,1779045040000,-500.0,8.592e-05,2]
[422541849,1779045040000,-441.79320965,8.592e-05,2]
[422541847,1779045040000,-500.0,8.592e-05,2]
[422541845,1779045040000,-1528.20679035,8.358e-05,2]
[422541846,1779045040000,-500.0,8.592e-05,2]
[422541843,1779045040000,-200.0,8.322e-05,2]
[422541844,1779045040000,-151.79320965,8.358e-05,2]
[422541842,1779045040000,-619.28437789,7.6e-05,2]
[422541867,1779045040000,-500.0,8.592e-05,2]
[422541853,1779045040000,-500.0,8.592e-05,2]
[422541865,1779045040000,-500.0,8.592e-05,2]
[422541841,1779045040000,-2304.04507,7.6e-05,2]
[422541870,1779045040000,-500.0,8.592e-05,2]
[422541866,1779045040000,-500.0,8.592e-05,2]
[422541893,1779045040000,-500.0,8.592e-05,2]
[422541895,1779045040000,-500.0,8.592e-05,2]
[422541890,1779045040000,-500.0,8.592e-05,2]
[422541889,1779045040000,-500.0,8.592e-05,2]
[422541891,1779045040000,-500.0,8.592e-05,2]
[422541892,1779045040000,-500.0,8.592e-05,2]
[422541894,1779045040000,-500.0,8.592e-05,2]
[422541886,1779045040000,-463.23571688,8.592e-05,2]
[422541887,1779045040000,-500.0,8.592e-05,2]
[422541884,1779045040000,-303.98435585,8.592e-05,2]
[422541885,1779045040000,-500.0,8.592e-05,2]
[422541883,1779045040000,-324.23391327,8.592e-05,2]
[422541888,1779045040000,-500.0,8.592e-05,2]
[422541881,1779045040000,-500.0,8.592e-05,2]
[422541882,1779045040000,-500.0,8.592e-05,2]
[422541872,1779045040000,-326.41176082,8.592e-05,2]
[422541873,1779045040000,-500.0,8.592e-05,2]
[422541871,1779045040000,-155.12235745,8.592e-05,2]
[422541875,1779045040000,-500.0,8.592e-05,2]
[422541874,1779045040000,-500.0,8.592e-05,2]
[422541879,1779045040000,-483.6094447,8.592e-05,2]
[422541869,1779045040000,-500.0,8.592e-05,2]
[422541878,1779045040000,-500.0,8.592e-05,2]
[422541877,1779045040000,-500.0,8.592e-05,2]
[422541880,1779045040000,-500.0,8.592e-05,2]
[422541876,1779045040000,-500.0,8.592e-05,2]
[422541918,1779045041000,-500.0,8.592e-05,2]
[422541913,1779045041000,-500.0,8.592e-05,2]
[422541916,1779045041000,-500.0,8.592e-05,2]
[422541912,1779045041000,-500.0,8.592e-05,2]
[422541923,1779045041000,-500.0,8.595e-05,2]
[422541915,1779045041000,-500.0,8.592e-05,2]
[422541914,1779045041000,-500.0,8.592e-05,2]
[422541919,1779045041000,-500.0,8.592e-05,2]
[422541917,1779045041000,-500.0,8.592e-05,2]
[422541910,1779045041000,-500.0,8.592e-05,2]
[422541920,1779045041000,-6308.34319775,8.593e-05,2]
[422541909,1779045041000,-500.0,8.592e-05,2]
[422541898,1779045041000,-500.0,8.592e-05,2]
[422541908,1779045041000,-457.65158933,8.592e-05,2]
[422541907,1779045041000,-500.0,8.592e-05,2]
[422541906,1779045041000,-500.0,8.592e-05,2]
[422541904,1779045041000,-500.0,8.592e-05,2]
[422541900,1779045041000,-500.0,8.592e-05,2]
[422541903,1779045041000,-500.0,8.592e-05,2]
[422541901,1779045041000,-500.0,8.592e-05,2]
[422541902,1779045041000,-500.0,8.592e-05,2]
[422541899,1779045041000,-500.0,8.592e-05,2]
[422541897,1779045041000,-500.0,8.592e-05,2]
[422541896,1779045041000,-500.0,8.592e-05,2]
[422541924,1779045041000,-500.0,8.595e-05,2]
[422541911,1779045041000,-500.0,8.592e-05,2]
[422541921,1779045041000,-514.26270035,8.595e-05,2]
[422541905,1779045041000,-500.0,8.592e-05,2]
[422541925,1779045041000,-500.0,8.595e-05,2]
[422541951,1779045041000,-3421.67861095,8.598e-05,2]
[422541950,1779045041000,-6090.27881783,8.598e-05,2]
[422541949,1779045041000,-961167.81805963,8.598e-05,2]
[422541946,1779045041000,-7406.91344323,8.596e-05,2]
[422541947,1779045041000,-51155.03982764,8.596e-05,2]
[422541944,1779045041000,-250.0,8.595e-05,2]
[422541942,1779045041000,-500.0,8.595e-05,2]
[422541943,1779045041000,-500.0,8.595e-05,2]
[422541938,1779045041000,-500.0,8.595e-05,2]
[422541940,1779045041000,-500.0,8.595e-05,2]
[422541941,1779045041000,-500.0,8.595e-05,2]
[422541945,1779045041000,-128999.77579313,8.596e-05,2]
[422541948,1779045041000,-603212.53458339,8.596e-05,2]
[422541936,1779045041000,-500.0,8.595e-05,2]
[422541939,1779045041000,-500.0,8.595e-05,2]
[422541927,1779045041000,-500.0,8.595e-05,2]
[422541933,1779045041000,-500.0,8.595e-05,2]
[422541926,1779045041000,-273.25019736,8.595e-05,2]
[422541931,1779045041000,-500.0,8.595e-05,2]
[422541932,1779045041000,-500.0,8.595e-05,2]
[422541922,1779045041000,-500.0,8.595e-05,2]
[422541929,1779045041000,-500.0,8.595e-05,2]
[422541930,1779045041000,-500.0,8.595e-05,2]
[422541928,1779045041000,-500.0,8.595e-05,2]
[422541934,1779045041000,-500.0,8.595e-05,2]
[422541935,1779045041000,-500.0,8.595e-05,2]
[422541937,1779045041000,-500.0,8.595e-05,2]
[422541970,1779045043000,-5000.0,7.524e-05,2]
[422541971,1779045043000,-3006.14716759,8.598e-05,2]
[422541983,1779045046000,-5999.41189998,8.598e-05,2]
[422541982,1779045046000,-9823.60065379,8.598e-05,2]
[422542030,1779046232000,-1205.6713863,7.114e-05,2]
[422542041,1779046232000,-229.81739269,8.192e-05,2]
[422542033,1779046232000,-167.789875,7.556e-05,2]
[422542032,1779046232000,-423.26651619,7.278e-05,2]
[422542034,1779046232000,-179.24543093,8.035e-05,2]
[422542035,1779046232000,-209.991,8.128e-05,2]
[422542037,1779046232000,-178.14456858,8.192e-05,2]
[422542038,1779046232000,-500.0,8.192e-05,2]
[422542036,1779046232000,-1200.0,8.191e-05,2]
[422542039,1779046232000,-347.86915654,8.192e-05,2]
[422542031,1779046232000,-3794.3286137,7.114e-05,2]
[422542044,1779046232000,-500.0,8.192e-05,2]
[422542042,1779046232000,-500.0,8.192e-05,2]